lending/lending_fUSD_20240130
["ID","MTS","AMOUNT","RATE_DAILY","PERIOD"]
[313030380,1706650232714,-208.3312263,0.000229,2]
[313030381,1706650232723,-1921.46411968,0.000229,2]
[313030382,1706650232732,-2648.0987132,0.000229,2]
[313030383,1706650232741,-712.95,0.00022904,2]
[313030384,1706650232750,-1404.17,0.00022904,2]
[313030385,1706650232760,-150.99,0.0002299,2]
[313030386,1706650232770,-361.54578775,0.0002299,2]
[313030387,1706650232779,-361.54578775,0.0002299,2]
[313030388,1706650232788,-400.0,0.00022997,2]
[313030389,1706650232797,-436.36,0.00022997,2]
[313030390,1706650232806,-304.08770656,0.00022998,2]
[313030391,1706650232815,-370.93681553,0.00022998,2]
[313030392,1706650232824,-343.24758046,0.00022998,2]
[313030393,1706650232833,-2088.88170742,0.00022998,2]
[313030394,1706650232843,-4144.98007054,0.00022998,2]
[313030395,1706650232852,-13669.60018998,0.00022998,2]
[313030396,1706650232863,-673.01,0.00022998,2]
[313030397,1706650232934,-612.83195705,0.00022998,2]
[313030398,1706650232944,-12070.08569175,0.00022998,2]
[313030399,1706650232955,-1009.80580665,0.00022998,2]
[313030400,1706650232966,-1042.42601603,0.00022998,2]
[313030401,1706650232984,-1403.57398397,0.00022998,2]
[313030402,1706650232995,-792.99802951,0.00022998,2]
[313030403,1706650233006,-1250.0,0.00022998,2]
[313030414,1706650238072,-97099.43500487,0.00022998,2]
[313030415,1706650238083,-215.58842156,0.00022999,2]
[313030416,1706650238093,-176031.36211779,0.00023,2]
[313030417,1706650238102,-1407243.04311843,0.00023,2]
[313030418,1706650238112,-150.0,0.00023,2]
[313030419,1706650238122,-1257.15494925,0.00023167,2]
[313030420,1706650238132,-168.94,0.00023183,2]
[313030421,1706650238141,-152.56,0.00023197,2]
[313030422,1706650238152,-499.99,0.00023286,2]
[313030423,1706650238161,-1993.49,0.00023286,2]
[313030424,1706650238171,-152.56,0.0002329,2]
[313030425,1706650238182,-152.56,0.00023383,2]
[313030426,1706650238192,-1268.41,0.00023402,2]
[313030427,1706650238202,-152.56,0.00023476,2]
[313030428,1706650238212,-152.56,0.00023569,2]
[313030429,1706650238222,-152.56,0.00023662,2]
[313030430,1706650238232,-152.56,0.00023755,2]
[313030431,1706650238242,-152.56,0.00023848,2]
[313030432,1706650238252,-152.56,0.00023941,2]
[313030433,1706650238262,-201.63954653,0.00024,2]
[313030434,1706650238272,-163.95,0.00024027,2]
[313030435,1706650238282,-152.56,0.00024034,2]
[313030436,1706650238292,-152.56,0.00024127,2]
[313030437,1706650238301,-289.87,0.00024183,2]
[313030438,1706650238310,-152.56,0.0002422,2]
[313030439,1706650238321,-152.56,0.00024313,2]
[313030440,1706650238330,-9353.73,0.00024384,2]
[313030441,1706650238340,-152.56,0.00024406,2]
[313030442,1706650238350,-250.0,0.00024658,2]
[313030443,1706650238359,-167.12,0.00024747,2]
[313030444,1706650238369,-2916.0,0.000249,2]
[313030445,1706650238378,-13807.0,0.000249,2]
[313030446,1706650238388,-800.0,0.00024986,2]
[313030447,1706650238398,-453.94592788,0.00024999,2]
[313030448,1706650238410,-304.2742515,0.00025,2]
[313030449,1706650238420,-202.54115654,0.00025,2]
[313030451,1706650238429,-1904.53326151,0.00025,2]
[313030453,1706650238439,-510.39030843,0.00025,2]
[313030455,1706650238448,-935.98268242,0.00025,2]
[313030457,1706650238457,-1587.92031382,0.00025,2]
[313030459,1706650238467,-158.56574006,0.00025,2]
[313030462,1706650238480,-167.72726834,0.00025,2]
[313030463,1706650238489,-1252.43284073,0.00025,2]
[313030466,1706650238499,-1250.0,0.00025,3]
[313030468,1706650238509,-895.72512764,0.00025,2]
[313030470,1706650238518,-1268.41,0.00025045,2]
[313030472,1706650238527,-694.29,0.00025048,2]
[313030474,1706650238537,-422.2,0.00025107,2]
[313030476,1706650238547,-201.92063419,0.000253,2]
[313030478,1706650238557,-522.84473035,0.00025377,2]
[313030480,1706650238566,-895.72512764,0.000257,2]
[313030482,1706650238576,-400.0,0.00025871,2]
[313030484,1706650238586,-694.29,0.00025934,2]
[313030486,1706650238596,-600.0,0.00026058,2]
[313030488,1706650238606,-150.0,0.00026079,2]
[313030490,1706650238615,-171.0,0.00026132,2]
[313030492,1706650238625,-800.0,0.00026137,2]
[313030494,1706650238634,-217.93,0.00026149,2]
[313030496,1706650238644,-2000.0,0.00026174,2]
[313030498,1706650238653,-895.72512764,0.000264,2]
[313030500,1706650238662,-1268.41,0.00026689,2]
[313030502,1706650238671,-211.65746237,0.00026792,3]
[313030504,1706650238681,-694.29,0.0002682,2]
[313030506,1706650238690,-167.12,0.00026997,2]
[313030507,1706650238700,-417.60997134,0.00027,2]
[313030508,1706650238709,-1300.0,0.00027,3]
[313030509,1706650238718,-895.72512764,0.000271,2]
[313030510,1706650238727,-422.2,0.00027371,2]
[313030511,1706650238736,-265.78,0.00027397,2]
[313030512,1706650238745,-398.68,0.00027397,2]
[313030513,1706650238755,-182.4,0.00027397,2]
[313030514,1706650238765,-182.4,0.00027556,2]
[313030515,1706650238774,-265.78,0.00027614,2]
[313030516,1706650238784,-398.68,0.00027614,2]
[313030517,1706650238793,-694.29,0.00027706,2]
[313030519,1706650238802,-182.4,0.00027714,2]
[313030521,1706650238811,-895.72512764,0.000278,2]
[313030523,1706650238821,-265.78,0.0002783,2]
[313030526,1706650238831,-398.68,0.0002783,2]
[313030528,1706650238841,-522.84473035,0.00027855,2]
[313030529,1706650238850,-182.4,0.00027872,2]
[313030532,1706650238861,-152.38581276,0.00027907,2]
[313030534,1706650238870,-690.73183614,0.00028,2]
[313030535,1706650238880,-182.4,0.0002803,2]
[313030538,1706650238890,-265.78,0.00028046,2]
[313030540,1706650238899,-398.68,0.00028046,2]
[313030542,1706650238909,-182.4,0.00028189,2]
[313030544,1706650238919,-265.78,0.00028262,2]
[313030546,1706650238929,-398.68,0.00028262,2]
[313030548,1706650238938,-1268.41,0.00028333,2]
[313030550,1706650238948,-182.4,0.00028347,2]
[313030552,1706650238958,-265.78,0.00028479,2]
[313030554,1706650238969,-398.68,0.00028479,2]
[313030556,1706650238978,-1031.0,0.00028486,2]
[313030558,1706650238988,-895.72512764,0.000285,2]
[313030560,1706650238999,-182.4,0.00028505,2]
[313030562,1706650239008,-694.29,0.00028592,2]
[313030564,1706650239019,-182.4,0.00028664,2]
[313030566,1706650239028,-265.78,0.00028695,2]
[313030568,1706650239038,-398.68,0.00028695,2]
[313030570,1706650239047,-400.0,0.00028746,2]
[313030572,1706650239058,-182.4,0.00028822,2]
[313030574,1706650239067,-265.78,0.00028911,2]
[313030576,1706650239078,-398.68,0.00028911,2]
[313030578,1706650239087,-155.0,0.00029,2]
[313030580,1706650239097,-352.39,0.00029,2]
[313030582,1706650239106,-3000.0,0.00029,2]
[313030584,1706650239115,-3000.0,0.00029,2]
[313030586,1706650239125,-3000.0,0.00029,2]
[313030588,1706650239134,-3000.0,0.00029,2]
[313030591,1706650239147,-3000.0,0.00029,2]
[313030593,1706650239157,-3078.54113967,0.00029,2]
[313030595,1706650239166,-250.0,0.00029,2]
[313030597,1706650239175,-265.78,0.00029128,2]
[313030599,1706650239184,-398.68,0.00029128,2]
[313030601,1706650239195,-895.72512764,0.000292,2]
[313030603,1706650239205,-253.62615809,0.00029274,2]
[313030605,1706650239216,-600.0,0.00029316,2]
[313030607,1706650239225,-265.78,0.00029344,2]
[313030609,1706650239235,-398.68,0.00029344,2]
[313030611,1706650239244,-694.29,0.00029478,2]
[313030613,1706650239254,-265.78,0.0002956,2]
[313030615,1706650239263,-398.68,0.0002956,2]
[313030618,1706650239273,-422.2,0.00029635,2]
[313030619,1706650239282,-265.78,0.00029777,2]
[313030621,1706650239291,-398.68,0.00029777,2]
[313030624,1706650239301,-175.93774684,0.000298,2]
[313030626,1706650239311,-416.32,0.00029815,2]
[313030628,1706650239320,-538.62,0.00029815,2]
[313030630,1706650239330,-895.72512764,0.000299,2]
[313030632,1706650239340,-1268.41,0.00029977,2]
[313030634,1706650239349,-265.78,0.00029993,2]
[313030636,1706650239359,-398.68,0.00029993,2]
[313030638,1706650239368,-1071.57950665,0.00029998,2]
[313030640,1706650239377,-327.734199,0.00029998,2]
[313030642,1706650239387,-1674.05699034,0.00029998,5]
[313030644,1706650239397,-1600.0,0.00029998,2]
[313030646,1706650239407,-207.98262082,0.00029998,2]
[313030648,1706650239418,-191.04557841,0.00029998,2]
[313030650,1706650239428,-297.1012333,0.00029998,2]
[313030652,1706650239438,-264.55629569,0.00029998,2]
[313030654,1706650239447,-1061.27262846,0.00029998,2]
[313030656,1706650239456,-501.82966339,0.00029998,2]
[313030658,1706650239466,-210.10824909,0.00029998,2]
[313030660,1706650239475,-199.80077813,0.00029998,2]
[313030662,1706650239485,-10486.82282849,0.00029999,2]
[313030663,1706650239499,-3022.43755205,0.00029999,2]
[313030666,1706650239509,-269.68289212,0.00029999,2]
[313030668,1706650239518,-19197.94625667,0.00029999,2]
[313030670,1706650239528,-1153.75350663,0.00029999,2]
[313030672,1706650239538,-110736.0759719,0.0003,4]
[313030674,1706650239547,-2647.79652574,0.0003,4]
[313030676,1706650239556,-19084.94415689,0.0003,4]
[313030678,1706650239566,-155.0,0.0003,2]
[313030680,1706650239576,-400.21871354,0.0003,4]
[313030682,1706650239586,-375.38823797,0.0003,2]
[313030684,1706650239595,-5942.44540049,0.0003,4]
[313030686,1706650239605,-358.00273995,0.0003,2]
[313030688,1706650239614,-816.69318751,0.0003,4]
[313030690,1706650239623,-155.0,0.0003,4]
[313030692,1706650239632,-908.21727599,0.0003,4]
[313030694,1706650239642,-73146.35628528,0.0003,4]
[313030696,1706650239651,-257.145635,0.0003,4]
[313030698,1706650239660,-18051.40918937,0.0003,4]
[313030700,1706650239669,-65339.40032968,0.0003,2]
[313030727,1706650239908,-9641.46795832,0.0003,2]
[313030729,1706650239917,-693.41375694,0.0003,2]
[313030731,1706650239926,-583.92214289,0.0003,2]
[313030733,1706650239934,-8950.0,0.0003,3]
[313030735,1706650239943,-3000.0,0.0003,2]
[313030737,1706650239952,-3000.0,0.0003,2]
[313030739,1706650239962,-3000.0,0.0003,2]
[313030741,1706650239971,-3000.0,0.0003,2]
[313030743,1706650239980,-3000.0,0.0003,2]
[313030745,1706650239989,-3000.0,0.0003,2]
[313030747,1706650239999,-203.0,0.0003,2]
[313030749,1706650240008,-157.61,0.00030137,2]
[313030751,1706650240017,-265.78,0.00030209,2]
[313030753,1706650240027,-398.68,0.00030209,2]
[313030755,1706650240036,-522.84473035,0.00030332,2]
[313030757,1706650240045,-694.29,0.00030364,2]
[313030759,1706650240055,-155.0,0.0003037,2]
[313030761,1706650240064,-265.78,0.00030425,2]
[313030763,1706650240076,-398.68,0.00030425,2]
[313030764,1706650240085,-895.72512764,0.000306,2]
[313030767,1706650240094,-265.78,0.00030642,2]
[313030769,1706650240104,-398.68,0.00030642,2]
[313030771,1706650240113,-15050.89039738,0.00030826,2]
[313030773,1706650240122,-265.78,0.00030858,2]
[313030775,1706650240132,-398.68,0.00030858,2]
[313030777,1706650240141,-265.78,0.00031074,2]
[313030779,1706650240151,-398.68,0.00031074,2]
[313030781,1706650240160,-200.0,0.00031149,3]
[313030783,1706650240169,-800.0,0.00031149,3]
[313030785,1706650240178,-3126.62522492,0.00031158,4]
[313030787,1706650240187,-434.88877985,0.0003116,2]
[313030788,1706650240196,-265.78,0.00031291,2]
[313030790,1706650240205,-398.68,0.00031291,2]
[313030792,1706650240215,-895.72512764,0.000313,2]
[313030794,1706650240224,-157.61,0.00031355,2]
[313030796,1706650240234,-4883.67640065,0.0003143,4]
[313030799,1706650240243,-438.29,0.00031457,2]
[313030801,1706650240252,-265.78,0.00031507,2]
[313030803,1706650240261,-398.68,0.00031507,2]
[313030805,1706650240270,-400.0,0.00031621,2]
[313030806,1706650240280,-1268.41,0.00031621,2]
[313030808,1706650240289,-263.21,0.00031644,2]
[313030810,1706650240298,-180.0,0.00031644,2]
[313030813,1706650240308,-152.49041135,0.00031713,2]
[313030815,1706650240317,-155.0,0.0003174,2]
[313030817,1706650240328,-150.0,0.000318,2]
[313030818,1706650240338,-2478.53279229,0.00031814,4]
[313030820,1706650240347,-422.2,0.00031899,2]
[313030823,1706650240356,-155.0,0.00032,2]
[313030825,1706650240366,-13115.55561982,0.00032,4]
[313030827,1706650240375,-4305.83883137,0.00032,2]
[313030829,1706650240384,-895.72512764,0.00032,2]
[313030830,1706650240393,-150.0,0.00032348,2]
[313030832,1706650240402,-150.0,0.00032525,2]
[313030834,1706650240414,-150.0,0.00032526,2]
[313030836,1706650240423,-150.0,0.00032535,2]
[313030838,1706650240432,-150.0,0.00032539,2]
[313030839,1706650240441,-150.0,0.00032552,2]
[313030840,1706650240450,-150.0,0.00032553,2]
[313030841,1706650240461,-150.0,0.00032557,2]
[313030842,1706650240470,-150.0,0.00032566,2]
[313030843,1706650240479,-157.61,0.00032572,2]
[313030844,1706650240488,-600.0,0.00032573,2]
[313030845,1706650240499,-150.0,0.0003262,2]
[313030846,1706650240508,-150.0,0.00032634,2]
[313030847,1706650240518,-16421.42944879,0.00032636,4]
[313030848,1706650240527,-150.0,0.00032638,2]
[313030850,1706650240536,-150.0,0.00032648,2]
[313030851,1706650240545,-150.0,0.00032653,2]
[313030852,1706650240554,-150.0,0.00032657,2]
[313030853,1706650240563,-150.0,0.00032665,2]
[313030854,1706650240573,-150.0,0.00032669,2]
[313030855,1706650240582,-150.0,0.00032685,2]
[313030856,1706650240591,-895.72512764,0.000327,2]
[313030857,1706650240600,-150.0,0.00032719,7]
[313030858,1706650240610,-150.0,0.00032723,2]
[313030859,1706650240619,-150.0,0.0003277,2]
[313030860,1706650240628,-150.0,0.00032779,2]
[313030861,1706650240637,-150.0,0.00032789,2]
[313030862,1706650240647,-361.54578775,0.0003279,2]
[313030863,1706650240656,-39870.3784374,0.00032797,2]
[313030864,1706650240665,-158.98643164,0.00032798,4]
[313030865,1706650240675,-3682.87510353,0.00032799,4]
[313030866,1706650240684,-2416.09188211,0.00032799,2]
[313030867,1706650240693,-236.68057658,0.00032799,2]
[313030868,1706650240702,-177.62911183,0.00032799,2]
[313030869,1706650240712,-236.68057658,0.00032799,2]
[313030870,1706650240721,-177.62911183,0.00032799,2]
[313030871,1706650240730,-1714724.90016188,0.000328,2]
[313030872,1706650240740,-1966.90599291,0.000328,2]
[313030873,1706650240749,-500.0,0.000328,2]
[313030874,1706650240759,-380.09202361,0.000328,4]
[313030875,1706650240768,-200.0,0.000328,2]
[313030876,1706650240778,-159.01761927,0.000328,4]
[313030877,1706650240787,-5630.88659937,0.000328,2]
[313030878,1706650240796,-417007.95575971,0.000328,2]
[313030879,1706650240805,-150.1,0.000328,2]
[313030880,1706650240815,-158.56719207,0.000328,30]
[313030881,1706650240824,-522.84473035,0.00032809,4]
[313030882,1706650240833,-500.0,0.00032877,2]
[313030883,1706650240844,-152.38581276,0.00032915,2]
[313030884,1706650240853,-167.0,0.00032989,2]
[313030885,1706650240863,-203.0,0.00033,2]
[313030886,1706650240873,-155.0,0.0003311,2]
[313030887,1706650240882,-1000.0,0.00033151,120]
[313030888,1706650240891,-157.48604217,0.000334,4]
[313030889,1706650240900,-394.05733309,0.000335,2]
[313030890,1706650240909,-1000.0,0.0003371,2]
[313030891,1706650240918,-157.61,0.0003379,2]
[313030892,1706650240928,-500.50393407,0.00033876,2]
[313030893,1706650240937,-167.0,0.00033951,2]
[313030894,1706650240946,-636.15843273,0.00034,4]
[313030895,1706650240956,-275.78984175,0.00034,4]
[313030896,1706650240965,-422.2,0.00034163,2]
[313030897,1706650240974,-204.0,0.00034297,2]
[313030898,1706650240983,-155.0,0.0003448,2]
[313030899,1706650240993,-400.0,0.00034495,2]
[313030900,1706650241002,-153.97,0.000348,2]
[313030901,1706650241011,-919.11,0.000348,2]
[313030902,1706650241021,-77.44562857,0.000348,2]
[313030903,1706650241036,-841.66437143,0.000348,2]
[313030904,1706650241045,-919.11,0.000348,2]
[313030905,1706650241055,-919.11,0.000348,2]
[313030906,1706650241064,-919.11,0.000348,2]
[313030907,1706650241074,-919.11,0.000348,2]
[313030908,1706650241084,-919.11,0.000348,2]
[313030909,1706650241093,-919.11,0.000348,2]
[313030910,1706650241103,-919.11,0.000348,2]
[313030911,1706650241112,-919.11,0.000348,2]
[313030912,1706650241121,-919.11,0.000348,2]
[313030913,1706650241131,-919.11,0.000348,2]
[313030914,1706650241140,-919.11,0.000348,2]
[313030915,1706650241149,-919.11,0.000348,2]
[313030916,1706650241158,-919.11,0.000348,2]
[313030917,1706650241168,-919.11,0.000348,2]
[313030918,1706650241177,-919.11,0.000348,2]
[313030919,1706650241186,-919.11,0.000348,2]
[313030920,1706650241195,-919.11,0.000348,2]
[313030921,1706650241204,-919.11,0.000348,2]
[313030922,1706650241214,-8975.56984561,0.000349,4]
[313030923,1706650241223,-10653.02373515,0.000349,2]
[313030924,1706650241233,-987.67273889,0.000349,2]
[313030925,1706650241242,-987.67273879,0.000349,2]
[313030926,1706650241251,-987.67273879,0.000349,2]
[313030927,1706650241261,-987.67273879,0.000349,2]
[313030928,1706650241270,-987.67273879,0.000349,2]
[313030929,1706650241280,-987.67273879,0.000349,2]
[313030930,1706650241288,-987.67273879,0.000349,2]
[313030931,1706650241298,-987.67273879,0.000349,2]
[313030932,1706650241307,-1739.66383947,0.0003499,2]
[313030933,1706650241316,-156.14885535,0.00035,4]
[313030934,1706650241326,-1016.64000001,0.00035,4]
[313030935,1706650241336,-155.0,0.00035,2]
[313030936,1706650241345,-449.50532217,0.00035,4]
[313030937,1706650241354,-155.0,0.00035,4]
[313030938,1706650241362,-155.0,0.00035,2]
[313030939,1706650241372,-1000.0,0.00035,10]
[313030940,1706650241381,-155.47896354,0.00035,4]
[313030941,1706650241390,-1488.51715449,0.00035,2]
[313030942,1706650241401,-321.77816682,0.00035,2]
[313030943,1706650241410,-740.1727219,0.00035,2]
[313030944,1706650241420,-785.3251218,0.00035,2]
[313030945,1706650241429,-785.3251218,0.00035,2]
[313030946,1706650241438,-785.3251218,0.00035,2]
[313030947,1706650241447,-785.3251218,0.00035,2]
[313030948,1706650241457,-785.3251218,0.00035,2]
[313030949,1706650241466,-785.3251218,0.00035,2]
[313030950,1706650241475,-785.3251218,0.00035,2]
[313030951,1706650241484,-785.3251218,0.00035,2]
[313030952,1706650241495,-785.3251218,0.00035,2]
[313030953,1706650241504,-785.3251218,0.00035,2]
[313030954,1706650241513,-785.3251218,0.00035,2]
[313030955,1706650241521,-785.3251218,0.00035,2]
[313030956,1706650241531,-785.3251218,0.00035,2]
[313030957,1706650241540,-785.3251218,0.00035,2]
[313030958,1706650241549,-785.3251218,0.00035,2]
[313030959,1706650241558,-785.3251218,0.00035,2]
[313030960,1706650241567,-785.3251218,0.00035,2]
[313030961,1706650241577,-785.3251218,0.00035,2]
[313030962,1706650241586,-785.3251218,0.00035,2]
[313030963,1706650241595,-785.3251218,0.00035,2]
[313030964,1706650241605,-785.3251218,0.00035,2]
[313030965,1706650241614,-785.3251218,0.00035,2]
[313030966,1706650241623,-785.3251218,0.00035,2]
[313030967,1706650241631,-785.3251218,0.00035,2]
[313030968,1706650241640,-785.3251218,0.00035,2]
[313030969,1706650241649,-89.74347294,0.00035,2]
[313030970,1706650241662,-695.58164886,0.00035,2]
[313030971,1706650241671,-785.3251218,0.00035,2]
[313030972,1706650241680,-785.3251218,0.00035,2]
[313030973,1706650241689,-785.3251218,0.00035,2]
[313030974,1706650241698,-785.3251218,0.00035,2]
[313030975,1706650241707,-785.3251218,0.00035,2]
[313030976,1706650241717,-785.3251218,0.00035,2]
[313030977,1706650241726,-785.3251218,0.00035,2]
[313030978,1706650241735,-785.3251218,0.00035,2]
[313030979,1706650241745,-785.3251218,0.00035,2]
[313030980,1706650241755,-785.3251218,0.00035,2]
[313030981,1706650241765,-785.3251218,0.00035,2]
[313030982,1706650241774,-785.3251218,0.00035,2]
[313030983,1706650241783,-524.22049347,0.00035,2]
[313030984,1706650241796,-261.10462833,0.00035,2]
[313030985,1706650241805,-785.3251218,0.00035,2]
[313030986,1706650241815,-785.3251218,0.00035,2]
[313030987,1706650241824,-785.3251218,0.00035,2]
[313030988,1706650241833,-785.3251218,0.00035,2]
[313030989,1706650241842,-785.3251218,0.00035,2]
[313030990,1706650241851,-785.3251218,0.00035,2]
[313030991,1706650241860,-785.3251218,0.00035,2]
[313030992,1706650241870,-785.3251218,0.00035,2]
[313030993,1706650241879,-785.3251218,0.00035,2]
[313030994,1706650241888,-785.3251218,0.00035,2]
[313030995,1706650241897,-785.3251218,0.00035,2]
[313030996,1706650241906,-23225.31262428,0.00035,2]
[313030997,1706650241914,-323.76721438,0.00035,2]
[313030998,1706650241924,-323.76721438,0.00035,2]
[313030999,1706650241933,-323.76721438,0.00035,2]
[313031000,1706650241942,-323.76721438,0.00035,2]
[313031001,1706650241951,-323.76721438,0.00035,2]
[313031002,1706650241960,-323.76721438,0.00035,2]
[313031003,1706650241970,-323.76721438,0.00035,2]
[313031004,1706650241980,-323.76721438,0.00035,2]
[313031005,1706650241989,-323.76721438,0.00035,2]
[313031006,1706650241998,-323.76721438,0.00035,2]
[313031007,1706650242007,-323.76721438,0.00035,2]
[313031008,1706650242016,-323.76721438,0.00035,2]
[313031009,1706650242026,-323.76721438,0.00035,2]
[313031010,1706650242035,-323.76721438,0.00035,2]
[313031011,1706650242044,-323.76721438,0.00035,2]
[313031012,1706650242053,-323.76721438,0.00035,2]
[313031013,1706650242063,-323.76721438,0.00035,2]
[313031014,1706650242073,-323.76721438,0.00035,2]
[313031015,1706650242083,-323.76721438,0.00035,2]
[313031016,1706650242092,-323.76721438,0.00035,2]
[313031017,1706650242102,-323.76721438,0.00035,2]
[313031018,1706650242111,-323.76721438,0.00035,2]
[313031019,1706650242120,-323.76721438,0.00035,2]
[313031020,1706650242129,-323.76721438,0.00035,2]
[313031021,1706650242139,-323.76721438,0.00035,2]
[313031022,1706650242148,-323.76721438,0.00035,2]
[313031023,1706650242157,-323.76721438,0.00035,2]
[313031024,1706650242166,-323.76721438,0.00035,2]
[313031025,1706650242175,-323.76721438,0.00035,2]
[313031026,1706650242185,-323.76721438,0.00035,2]
[313031027,1706650242194,-323.76721438,0.00035,2]
[313031028,1706650242203,-323.76721438,0.00035,2]
[313031029,1706650242212,-323.76721438,0.00035,2]
[313031030,1706650242222,-323.76721438,0.00035,2]
[313031031,1706650242231,-323.76721438,0.00035,2]
[313031032,1706650242240,-323.76721438,0.00035,2]
[313031033,1706650242251,-323.76721438,0.00035,2]
[313031034,1706650242261,-323.76721438,0.00035,2]
[313031035,1706650242270,-323.76721438,0.00035,2]
[313031036,1706650242279,-323.76721438,0.00035,2]
[313031037,1706650242288,-323.76721438,0.00035,2]
[313031038,1706650242297,-323.76721438,0.00035,2]
[313031039,1706650242306,-323.76721438,0.00035,2]
[313031040,1706650242315,-323.76721438,0.00035,2]
[313031041,1706650242325,-323.76721438,0.00035,2]
[313031042,1706650242334,-323.76721438,0.00035,2]
[313031043,1706650242343,-323.76721438,0.00035,2]
[313031044,1706650242352,-323.76721438,0.00035,2]
[313031045,1706650242361,-323.76721438,0.00035,2]
[313031046,1706650242370,-323.76721438,0.00035,2]
[313031047,1706650242378,-323.76721438,0.00035,2]
[313031048,1706650242387,-323.76721438,0.00035,2]
[313031049,1706650242397,-323.76721438,0.00035,2]
[313031050,1706650242409,-323.76721438,0.00035,2]
[313031051,1706650242419,-323.76721438,0.00035,2]
[313031052,1706650242428,-323.76721438,0.00035,2]
[313031053,1706650242437,-323.76721438,0.00035,2]
[313031054,1706650242447,-323.76721438,0.00035,2]
[313031055,1706650242457,-323.76721438,0.00035,2]
[313031056,1706650242466,-323.76721438,0.00035,2]
[313031057,1706650242474,-323.76721438,0.00035,2]
[313031058,1706650242484,-323.76721438,0.00035,2]
[313031059,1706650242494,-323.76721438,0.00035,2]
[313031060,1706650242504,-323.76721438,0.00035,2]
[313031061,1706650242513,-323.76721438,0.00035,2]
[313031062,1706650242522,-157.61,0.00035008,2]
[313031063,1706650242531,-34715.24799348,0.0003509,2]
[313031064,1706650242540,-522.84473035,0.00035286,7]
[313031065,1706650242549,-987.67273879,0.00035532,2]
[313031066,1706650242558,-10000.0,0.00035616,2]
[313031067,1706650242567,-9353.73,0.00035616,2]
[313031068,1706650242577,-175.0,0.00035629,2]
[313031069,1706650242586,-208.41492082,0.000357,2]
[313031070,1706650242596,-600.0,0.0003583,2]
[313031071,1706650242604,-155.0,0.0003585,2]
[313031072,1706650242614,-298.54892352,0.00036,4]
[313031073,1706650242623,-203.0,0.00036,2]
[313031074,1706650242632,-157.61,0.00036225,2]
[313031075,1706650242641,-1059.87356749,0.000364,2]
[313031076,1706650242650,-1683.42482174,0.000364,2]
[313031077,1706650242659,-2376.43689222,0.000364,2]
[313031078,1706650242667,-1921.46411967,0.000364,2]
[313031079,1706650242677,-2648.0987132,0.000364,2]
[313031080,1706650242686,-422.2,0.00036427,2]
[313031081,1706650242695,-157.8,0.00036438,2]
[313031082,1706650242705,-10000.0,0.00036678,3]
[313031083,1706650242714,-7309.18711527,0.0003668,30]
[313031084,1706650242723,-10000.0,0.00036934,2]
[313031085,1706650242732,-310.85850814,0.00037,4]
[313031086,1706650242742,-987.67273879,0.00037111,2]
[313031087,1706650242751,-155.0,0.0003722,2]
[313031088,1706650242761,-217.93,0.00037382,2]
[313031089,1706650242772,-157.61,0.00037443,2]
[313031090,1706650242781,-204.0,0.0003751,9]
[313031091,1706650242791,-17862.15204058,0.00037699,2]
[313031100,1706650243259,-19296.19362157,0.00037699,2]
[313031101,1706650243271,-397.86579353,0.00037699,2]